Cogmind - Beta 13 X1 @@@ ROGUE MODE // 2023.09.24 @ 13:34:06 Player: DuckBoy Result: Destroyed by S-27 Virus with Autogun Performance ------------- Evolutions (3) 1500 Regions Visited (12) 2400 Robots Destroyed (115) 575 Value Destroyed (3709) 3709 Prototype IDs (29) 580 Alien Tech Used (0) 0 Bonus (2694) 2694 TOTAL SCORE: 11458 Bonus ------- High Alert Combat Kills 221 Follower Combat Kills 93 Entered Garrisons 600 Used RIF Installer 1500 Aligned with FarCom 300 Friendly Fire -20 Cogmind --------- Core Integrity 0/700 Matter 190/300 Energy 100/100 System Corruption 42% Temperature Cool (9) Movement Core (50) Location -7/Garrison Parts ------- > --- POWER (1) -------- (None) > --- PROPULSION (3) --- (None) > --- UTILITY (7) ------ (None) > --- WEAPON (2) ------- (None) > --- INVENTORY (5) ---- Authchip [R/Combat] Authchip [R/Combat] Authchip [R/Combat] Authchip [R/Combat] Peak State ------------ > --- POWER ------------ Micro Nuclear Core > --- PROPULSION ------- Wheel Armored Huge Wheel > --- UTILITY ---------- Improved Heat Sink Improved Cooling System Improved Cooling System High-capacity Storage Unit Hardened Medium Armor Plating Hacking Suite System Restoration Module > --- WEAPON ----------- Heavy Laser Gauss Rifle > --- INVENTORY -------- Improved Deuterium Engine Wheel Wheel Xenon Bombardment Thruster Improved Light Armor Plating Authchip [R/Combat] Authchip [R/Combat] Authchip [R/Combat] Authchip [R/Combat] Authchip [R/Combat] Authchip [R/Combat] Authchip [R/Combat] Authchip [R/Combat] Authchip [R/Combat] Authchip [R/Combat] Gauss Cannon Missile Launcher Heavy Rocket Launcher Heavy Rocket Launcher Remote Datajack [Rating: 50] Favorites ----------- Power Improved Deuterium Engine Engine Improved Deuterium Engine Power Core Micro Nuclear Core Propulsion Compact Wheel Treads Light Treads Leg Carbon-fiber Leg Wheel Compact Wheel Flight Unit Xenon Bombardment Thruster Utility Improved Heat Sink Device Improved Heat Sink Storage High-capacity Storage Unit Processor Advanced Targeting Computer Hackware Hacking Suite Protection Reactive Plating Weapon Particle Cannon Energy Gun Heavy Laser Energy Cannon Particle Cannon Ballistic Gun Gauss Rifle Ballistic Cannon Gauss Cannon Launcher Heavy Rocket Launcher Impact Weapon Mace Build | -11 -10 -10 -10 -9 -8 -8 -8 -8 -7 -7 -7 -7 ------- Run | Jun Mat Min Exi Min Mat Gar Mat Gar Fac Was Fac Gar Slots Evolved 6 | . . . . . 4 . . . 2 . . . Power . | . . . . . . . . . . . . . Propulsion 1 | . . . . . . . . . 1 . . . Utility 5 | . . . . . 4 . . . 1 . . . Weapon . | . . . . . . . . . . . . . Parts Attached 121 | 6 6 4 3 4 15 20 . 16 37 6 3 1 Power 12 | 1 1 1 . . 1 2 . 2 3 . 1 . Engine 8 | 1 1 1 . . 1 2 . 1 1 . . . Core 4 | . . . . . . . . 1 2 . 1 . Reactor . | . . . . . . . . . . . . . Propulsion 46 | 2 . 2 2 4 6 11 . 6 9 2 2 . Treads 14 | 2 . 2 . 2 1 4 . 3 . . . . Leg 4 | . . . . . . . . . 4 . . . Wheel 26 | . . . 2 2 5 7 . 3 5 1 1 . Hover . | . . . . . . . . . . . . . Flight 2 | . . . . . . . . . . 1 1 . Utility 35 | 1 3 . 1 . 4 5 . 3 15 3 . . Device 16 | . 1 . . . 2 3 . 3 4 3 . . Storage 5 | 1 1 . 1 . . 2 . . . . . . Processor 3 | . . . . . . . . . 3 . . . Hackware 8 | . . . . . 1 . . . 7 . . . Protection 3 | . 1 . . . 1 . . . 1 . . . Artifact . | . . . . . . . . . . . . . Weapon 28 | 2 2 1 . . 4 2 . 5 10 1 . 1 Energy Gun 4 | 1 . . . . . . . 1 2 . . . Energy Cannon 14 | . 2 1 . . 3 2 . 1 4 1 . . Ballistic Gun 3 | 1 . . . . . . . . 2 . . . Ballistic Cannon 3 | . . . . . . . . 1 2 . . . Launcher 3 | . . . . . . . . 2 . . . 1 Special Weapon . | . . . . . . . . . . . . . Impact Weapon 1 | . . . . . 1 . . . . . . . Slashing Weapon . | . . . . . . . . . . . . . Piercing Weapon . | . . . . . . . . . . . . . Special Melee Weapon . | . . . . . . . . . . . . . Unidentified Prototypes 3 | . . . . . 1 . . . 1 . 1 . Corrupted Parts 1 | . . . . . . . . . . 1 . . System Corruption 6 | . . . . . . . . . . 6 . . Parts Lost 46 | . 1 1 . . . 13 . 7 12 9 . 3 Power 5 | . 1 . . . . 2 . 1 1 . . . Propulsion 10 | . . . . . . 3 . 3 1 1 . 2 Utility 23 | . . . . . . 7 . 2 8 6 . . Weapon 8 | . . 1 . . . 1 . 1 2 2 . 1 Highest Loss Streak 9 | . 1 1 . . . 7 . 3 5 9 . 3 To Critical Strikes . | . . . . . . . . . . . . . Average Slot Usage (%) 86 | . 92 99 92 85 88 89 90 94 80 63 21 23 Engine 7 | . 13 14 14 14 9 8 9 7 1 . . . Core 2 | . . . . . . . . 1 5 5 5 7 Treads 5 | . 28 28 15 2 . 1 . 2 . . . . Leg 1 | . . . . . . . . . 3 . . . Wheel 13 | . . . 12 25 17 16 18 14 12 11 4 . Device 16 | . 6 14 7 . 17 25 27 31 15 3 . . Storage 9 | . 14 14 13 14 9 8 9 9 7 5 . . Processor 1 | . . . . . . . . . 4 13 . . Hackware 6 | . . . . . 8 9 9 9 9 10 . . Protection 2 | . 1 . . . 7 1 . . 2 . . . Energy Gun 1 | . 2 . . . . . . 5 2 . . . Energy Cannon 14 | . 23 27 28 28 17 18 18 5 5 10 . . Ballistic Gun 1 | . 2 . . . . . . . 4 . . . Ballistic Cannon 1 | . . . . . . . . 5 2 . . . Naked Turns 3 | . . . . . . . . . . 2 . 1 Heaviest Build 230 | 13 34 34 213 213 230 230 60 65 72 68 8 15 Greatest Support 45 | 40 40 40 40 40 32 40 20 20 45 38 28 12 Greatest Overweight (x) 13 | . . . 6 6 7 13 2 6 5 1 . 1 Average Overweight (x) 2 | . . . 2 5 6 6 2 3 1 . . . Largest Inventory Capacity 35 | 8 15 15 35 35 35 35 20 20 20 20 5 5 Average Capacity 23 | 6 10 15 24 35 35 32 20 20 20 16 5 5 Most Carried 35 | 4 8 13 22 22 35 35 20 20 20 20 5 5 Average Carried 20 | 2 6 9 16 22 32 30 19 18 19 15 5 4 Final Capacity 35 | 8 15 15 35 35 35 20 20 20 20 5 5 5 Final Carried 35 | 4 8 13 22 22 35 20 20 20 19 5 5 4 Class Distribution -------------------- 35% | Hauler-Mutant 33% | Mutant 23% | Scavenger-Mutant 7% | Hacker-Mutant Dominant Class ---------------- Mutant | -10/Materials Mutant | -10/Mines Scavenger-Mutant | -10/Exiles Hauler-Mutant | -9/Mines Hauler-Mutant | -8/Materials Hauler-Mutant | -8/Garrison Scavenger-Mutant | -8/Materials Scavenger-Mutant | -8/Garrison Mutant | -7/Factory Hacker-Mutant | -7/Waste Mutant | -7/Factory Mutant | -7/Garrison Resources | -11 -10 -10 -10 -9 -8 -8 -8 -8 -7 -7 -7 -7 ----------- Run | Jun Mat Min Exi Min Mat Gar Mat Gar Fac Was Fac Gar Matter Collected 2020 | 244 64 40 30 38 145 260 . 346 811 42 . . Remotely . | . . . . . . . . . . . . . Salvage Created 4561 | . 298 182 . 33 682 751 51 617 1168 745 . 34 Parts 237 | . 18 9 . 2 33 42 6 37 69 13 . 8 Haulers Intercepted 4 | . 1 . . . 2 . . . 1 . . . Recyclers Shooed . | . . . . . . . . . . . . . Parts Field Recycled . | . . . . . . . . . . . . . Retrieved Matter . | . . . . . . . . . . . . . Parts Self-Destructed . | . . . . . . . . . . . . . Prevented . | . . . . . . . . . . . . . Kills | -11 -10 -10 -10 -9 -8 -8 -8 -8 -7 -7 -7 -7 ------- Run | Jun Mat Min Exi Min Mat Gar Mat Gar Fac Was Fac Gar Combat Hostiles Destroyed 91 | . 9 3 . 1 6 17 1 23 22 3 . 6 Melee 1 | . 1 . . . . . . . . . . . Guns 8 | . . . . . . . . 1 7 . . . Cannons 60 | . 7 3 . 1 5 15 1 14 11 3 . . AOE 17 | . . . . . . . . 8 3 . . 6 Classes Destroyed 15 | . 3 2 . . 5 3 . . 1 1 . . Worker 5 | . . 1 . . 1 . . . 3 . . . Builder 4 | . . . . . . . . . 4 . . . Tunneler 2 | . . . . . 2 . . . . . . . Hauler 4 | . 1 . . . 2 . . . 1 . . . Recycler 2 | . . . . . 1 . . . 1 . . . Operator 3 | . . . . . 1 . . . 2 . . . Watcher 4 | . . . . . 2 . . . 2 . . . Swarmer 30 | . 3 . . . . 3 . 11 7 . . 6 Grunt 28 | . 6 2 . 1 2 5 . 9 3 . . . Brawler 3 | . . . . . 1 2 . . . . . . Duelist 2 | . . . . . . 1 . . 1 . . . Sentry 11 | . . 1 . . 3 2 1 1 3 . . . Hunter 7 | . . . . . . 1 . 2 4 . . . Programmer 7 | . . . . . . 3 . . 4 . . . Compactor 3 | . . . . . . . . . . 3 . . Best Kill Streak 6 | . 3 2 . 1 5 3 1 6 4 2 . 6 Combat Bots Only 6 | . 3 2 . 1 3 3 1 6 3 2 . 6 Max Kills in Single Turn 3 | . 1 1 . 1 1 1 1 3 3 1 . 3 Gunslinging . | . . . . . . . . . . . . . Exploded 3 | . . . . . . . . 3 3 . . 3 Melee 1 | . 1 . . . . . . . . . . . Uniques/NPCs Destroyed . | . . . . . . . . . . . . . Combat | -11 -10 -10 -10 -9 -8 -8 -8 -8 -7 -7 -7 -7 -------- Run | Jun Mat Min Exi Min Mat Gar Mat Gar Fac Was Fac Gar Damage Taken 5874 | . 374 206 . 132 247 1191 46 771 1823 739 . 345 Core 1194 | . 38 43 . 39 30 136 28 168 337 212 . 163 Absorbed by Shields 157 | . . . . . . . . 157 . . . . Ignored by Resistances 13 | . . . . . 13 . . . . . . . Core Remaining (%) 62 | 100 . . . 52 . . . 34 . . . . Volleys Fired 346 | . 25 12 . 9 40 63 3 55 106 28 . 5 Largest 2 | . 2 2 . 2 2 2 2 2 2 2 . 1 Hottest 180 | . 136 136 . 136 136 136 136 136 180 180 . 39 Shots Fired 634 | . 50 22 . 18 80 113 6 97 197 46 . 5 Gun 115 | . . . . . . . . 11 104 . . . Cannon 509 | . 50 22 . 18 80 113 6 81 93 46 . . Launcher 10 | . . . . . . . . 5 . . . 5 Special . | . . . . . . . . . . . . . Kinetic 121 | . . . . . . . . 17 104 . . . Thermal 503 | . 50 22 . 18 80 113 6 75 93 46 . . Explosive 10 | . . . . . . . . 5 . . . 5 Electromagnetic . | . . . . . . . . . . . . . Robot Hit Streak 29 | . 4 12 . 7 14 7 9 17 23 29 . 2 Robot Miss Streak 6 | . 6 2 . 1 3 2 . 2 6 1 . 2 Penetration Max . | . . . . . . . . . . . . . Secondary Targets . | . . . . . . . . . . . . . Shots Hit Robots 380 | . 24 14 . 15 52 61 3 57 115 37 . 2 Core Hits 169 | . 10 6 . 2 18 26 1 37 45 8 . 16 Critical Kills 4 | . 1 . . . . 1 . . 2 . . . Critical Parts Destroyed . | . . . . . . . . . . . . . Critical Strikes 12 | . 1 . . . . 1 . 2 8 . . . Meltdown 2 | . 1 . . . . 1 . . . . . . Destroy 2 | . . . . . . . . . 2 . . . Blast 8 | . . . . . . . . 2 6 . . . Melee Attacks 1 | . . . . . 1 . . . . . . . Impact 1 | . . . . . 1 . . . . . . . Slashing . | . . . . . . . . . . . . . Piercing . | . . . . . . . . . . . . . Sneak Attacks . | . . . . . . . . . . . . . Combat Hostiles . | . . . . . . . . . . . . . Follow-up Attacks . | . . . . . . . . . . . . . Damage Inflicted 10825 | . 569 315 . 331 1092 1309 62 1877 3082 1195 . 993 Guns 1297 | . . . . . . . . 113 1184 . . . Cannons 7451 | . 529 305 . 325 1088 1309 62 1004 1634 1195 . . Explosions 2013 | . . . . . . . . 756 264 . . 993 Melee . | . . . . . . . . . . . . . Ramming 64 | . 40 10 . 6 4 . . 4 . . . . Kinetic 1522 | . . . . . . . . 180 1342 . . . Thermal 7490 | . 529 305 . 325 1088 1309 62 937 1740 1195 . . Explosive 1749 | . . . . . . . . 756 . . . 993 Electromagnetic . | . . . . . . . . . . . . . Impact . | . . . . . . . . . . . . . Slashing . | . . . . . . . . . . . . . Piercing . | . . . . . . . . . . . . . Highest Corruption 42 | . . . . . . 7 7 7 1 42 42 42 Average Corruption 6 | . . . . . . 6 7 7 1 17 42 42 Corruption Purged 1 | . . . . . . . . . 1 . . . Corruption Blocked . | . . . . . . . . . . . . . Effects 101 | . . . . . . 39 4 29 8 11 3 7 Message Errors 23 | . . . . . . 10 . 8 4 . . 1 Matter Fused 22 | . . . . . . 11 . 6 1 2 1 1 Heat Flow Errors 11 | . . . . . . 5 1 3 1 . 1 . Energy Discharges 8 | . . . . . . 3 1 2 . 2 . . Parts Rejected 3 | . . . . . . 1 . . . 2 . . Data Loss (minor) 13 | . . . . . . 3 2 3 2 1 1 1 Data Loss (major) 2 | . . . . . . 1 . . . . . 1 Misfires 4 | . . . . . . 1 . 3 . . . . Alerts 3 | . . . . . . . . 2 . 1 . . Misdirections 6 | . . . . . . . . . . 3 . 3 Weapon Failures 6 | . . . . . . 4 . 2 . . . . Overload Shots . | . . . . . . . . . . . . . Overflow Damage 334 | . . . . 21 30 . . 75 208 . . . Projectiles 184 | . . . . 21 30 . . 10 123 . . . Explosions 150 | . . . . . . . . 65 85 . . . Melee . | . . . . . . . . . . . . . Knockbacks 9 | . . . . 1 . . . 2 6 . . . Impact 2 | . . . . 1 . . . 1 . . . . Kinetic 7 | . . . . . . . . 1 6 . . . Secondary . | . . . . . . . . . . . . . Self-Inflicted Damage 81 | . . . . . . . . 37 44 . . . Shots 2 | . . . . . . . . 1 1 . . . Rammed 17 | 1 11 2 . 1 1 . . 1 . . . . Targets Rammed 18 | 1 12 2 . 1 1 . . 1 . . . . Kicked . | . . . . . . . . . . . . . Crushed 1 | . 1 . . . . . . . . . . . Highest Temperature 396 | . 299 150 . 294 33 169 272 203 297 396 218 . Average Temperature 102 | . 134 63 . 153 12 84 117 52 75 120 115 . Received Heat Transfer 1116 | . 171 96 . 78 117 171 27 228 186 . . 42 Effects 2 | . 2 . . . . . . . . . . . Energy Bleed 1 | . 1 . . . . . . . . . . . Interference 1 | . 1 . . . . . . . . . . . Siege Activations . | . . . . . . . . . . . . . Robots Corrupted . | . . . . . . . . . . . . . Combat Hostiles . | . . . . . . . . . . . . . Parts Fried . | . . . . . . . . . . . . . Impact Corruptions . | . . . . . . . . . . . . . Robots Melted 5 | . 1 . . . 1 2 . . 1 . . . Combat Hostiles 5 | . 1 . . . 1 2 . . 1 . . . Parts Melted 24 | . 4 . . . 3 9 . 1 6 1 . . Heat Transferred 12503 | . 962 555 . 592 1961 2238 111 1702 2532 1850 . . Parts Sabotaged . | . . . . . . . . . . . . . Parts Stolen . | . . . . . . . . . . . . . Parts Stripped . | . . . . . . . . . . . . . Power Chain Reactions . | . . . . . . . . . . . . . Missiles Intercepted . | . . . . . . . . . . . . . Alert | -11 -10 -10 -10 -9 -8 -8 -8 -8 -7 -7 -7 -7 ------- Run | Jun Mat Min Exi Min Mat Gar Mat Gar Fac Was Fac Gar Peak Influence 818 | . 262 82 . 117 117 514 295 818 493 147 . 165 Initial 429 | . . 24 . . . 40 250 191 429 146 . . Average 211 | . 92 58 . 50 31 286 285 621 240 58 . 19 Maximum Alert Level 3 | . 1 . . . . 2 1 3 2 . . . Low Security (%) 61 | 100 73 100 . 100 100 36 . 13 49 100 100 100 Level 1 18 | . 26 . . . . 38 100 12 25 . . . Level 2 12 | . . . . . . 24 . 10 25 . . . Level 3 6 | . . . . . . . . 64 . . . . Level 4 . | . . . . . . . . . . . . . Level 5 . | . . . . . . . . . . . . . High Security . | . . . . . . . . . . . . . Max Security . | . . . . . . . . . . . . . Squads Dispatched 10 | . . . . . 2 . . . 8 . . . Investigation 4 | . . . . . 1 . . . 3 . . . Extermination 4 | . . . . . . . . . 4 . . . Reinforcement 1 | . . . . . . . . . 1 . . . Assault . | . . . . . . . . . . . . . Garrison 1 | . . . . . 1 . . . . . . . Intercept . | . . . . . . . . . . . . . Searches Triggered . | . . . . . . . . . . . . . Construction Impeded . | . . . . . . . . . . . . . Haulers Reinforced . | . . . . . . . . . . . . . Active Scanning Responses . | . . . . . . . . . . . . . Cargo Convoy Interrupts . | . . . . . . . . . . . . . Stealth | -11 -10 -10 -10 -9 -8 -8 -8 -8 -7 -7 -7 -7 --------- Run | Jun Mat Min Exi Min Mat Gar Mat Gar Fac Was Fac Gar Distress Signals 4 | . 2 . . . 1 . . . 1 . . . Communications Jammed . | . . . . . . . . . . . . . Distress Signals . | . . . . . . . . . . . . . Times Spotted 145 | . 12 6 . 7 12 20 1 26 39 6 . 16 Peak Tracking Total 9 | . 3 2 . 2 4 5 1 6 4 4 . 9 Tactical Retreats 16 | . . . . 6 . 3 . 2 5 . . . Traps | -11 -10 -10 -10 -9 -8 -8 -8 -8 -7 -7 -7 -7 ------- Run | Jun Mat Min Exi Min Mat Gar Mat Gar Fac Was Fac Gar Traps Triggered 16 | . . . . . . 6 . 6 3 . . 1 Indirectly . | . . . . . . . . . . . . . Trap Hack Attempts . | . . . . . . . . . . . . . Triggered . | . . . . . . . . . . . . . Disarmed . | . . . . . . . . . . . . . Reprogrammed . | . . . . . . . . . . . . . Reused . | . . . . . . . . . . . . . Traps Extracted . | . . . . . . . . . . . . . Installed . | . . . . . . . . . . . . . Triggered . | . . . . . . . . . . . . . Machines | -11 -10 -10 -10 -9 -8 -8 -8 -8 -7 -7 -7 -7 ---------- Run | Jun Mat Min Exi Min Mat Gar Mat Gar Fac Was Fac Gar Machines Disabled 9 | . 1 . . . 1 . . 1 6 . . . Max in Single Turn 4 | . 1 . . . 1 . . 1 4 . . . Garrison Access 2 | . . . . . . . . . 2 . . . Machines Repaired . | . . . . . . . . . . . . . Machines Sabotaged . | . . . . . . . . . . . . . Overloaded Fab Kills . | . . . . . . . . . . . . . Hacking | -11 -10 -10 -10 -9 -8 -8 -8 -8 -7 -7 -7 -7 --------- Run | Jun Mat Min Exi Min Mat Gar Mat Gar Fac Was Fac Gar Machines Accessed 44 | . 3 . 1 1 8 3 1 3 21 . 2 1 Terminals 26 | . 3 . . 1 6 3 . 3 9 . . 1 Fabricators 5 | . . . . . . . . . 5 . . . Repair Stations 2 | . . . . . . . . . 2 . . . Recycling Units 3 | . . . . . . . . . 2 . 1 . Scanalyzers 2 | . . . . . 1 . . . 1 . . . Garrison Access 5 | . . . . . 1 . 1 . 2 . 1 . Total Hacks 107 | . 9 . 1 5 20 4 1 6 54 . 4 3 Successful 58 | . 3 . 1 1 12 2 1 1 36 . 1 . Failed 48 | . 5 . . 4 8 2 . 5 18 . 3 3 Catastrophic 7 | . 1 . . 1 . . . . 4 . 1 . Database Lockouts 1 | . 1 . . . . . . . . . . . Manual 59 | . 10 . 1 6 13 . . . 29 . . . Terminals 60 | . 9 . . 5 13 4 . 6 20 . . 3 Fabricators 19 | . . . . . . . . . 19 . . . Repair Stations 3 | . . . . . . . . . 3 . . . Recycling Units 8 | . . . . . . . . . 5 . 3 . Scanalyzers 10 | . . . . . 5 . . . 5 . . . Garrison Access 6 | . . . . . 2 . 1 . 2 . 1 . Terminal Hacks 12 | . 1 . 1 1 2 2 . 1 4 . . . Part Schematic 1 | . . . . . . . . . 1 . . . Robot Schematic 3 | . 1 . . 1 . . . . 1 . . . Emergency Access Points 1 | . . . . . . 1 . . . . . . Terminal Index 1 | . . . . . 1 . . . . . . . Garrison Index 1 | . . . . . 1 . . . . . . . Unreport Threat 2 | . . . . . . . . . 2 . . . Patrol Navigation 1 | . . . . . . . . 1 . . . . Security Stations 1 | . . . . . . 1 . . . . . . Derelict Proto ID Bank 1 | . . . 1 . . . . . . . . . Fabricator Hacks 11 | . . . . . . . . . 11 . . . Load Schematic 5 | . . . . . . . . . 5 . . . Build 6 | . . . . . . . . . 6 . . . Repair Station Hacks . | . . . . . . . . . . . . . Recycling Unit Hacks . | . . . . . . . . . . . . . Scanalyzer 9 | . . . . . 4 . . . 5 . . . Insert Component 5 | . . . . . 3 . . . 2 . . . Analyze 4 | . . . . . 1 . . . 3 . . . Garrison Access Hacks 5 | . . . . . 1 . 1 . 2 . 1 . Unlock Access 3 | . . . . . 1 . 1 . . . 1 . Seal Access 2 | . . . . . . . . . 2 . . . Unauthorized Hacks 21 | . 2 . . . 5 . . . 14 . . . Terminals 12 | . 2 . . . 4 . . . 6 . . . Assimilate 3 | . . . . . 1 . . . 2 . . . Botnet 7 | . 1 . . . 3 . . . 3 . . . Operators 2 | . 1 . . . . . . . 1 . . . Fabricators 5 | . . . . . . . . . 5 . . . Report 1 | . . . . . . . . . 1 . . . Prioritize 2 | . . . . . . . . . 2 . . . Haulers 2 | . . . . . . . . . 2 . . . Repair Stations 1 | . . . . . . . . . 1 . . . Mechanics 1 | . . . . . . . . . 1 . . . Recycling Units 2 | . . . . . . . . . 2 . . . Reject 1 | . . . . . . . . . 1 . . . Mask 1 | . . . . . . . . . 1 . . . Scanalyzers . | . . . . . . . . . . . . . Garrison Access 1 | . . . . . 1 . . . . . . . Reprogram 1 | . . . . . 1 . . . . . . . Data Cores Recovered 1 | . . . . . 1 . . . . . . . Used 1 | . . . . . 1 . . . . . . . Hacking Detections 36 | . 3 . . 1 6 1 . 3 19 . 2 1 Full Trace Events 4 | . . . . . . . . 2 2 . . . Feedback Events . | . . . . . . . . . . . . . Feedback Blocked . | . . . . . . . . . . . . . Robot Schematics Acquired 3 | . 1 . . 1 . . . . 1 . . . Robots Built 8 | . . . . . . . . . 8 . . . Authchips 5 | . . . . . . . . . 5 . . . Time 283 | . . . . . . . . . 283 . . . Total Robot Build Rating 20 | . . . . . . . . . 20 . . . Part Schematics Acquired 4 | . . . . . 1 . . . 3 . . . Parts Built 2 | . . . . . . . . . 2 . . . Authchips . | . . . . . . . . . . . . . Time 47 | . . . . . . . . . 47 . . . Total Part Build Rating 10 | . . . . . . . . . 10 . . . Parts Repaired . | . . . . . . . . . . . . . Time . | . . . . . . . . . . . . . Parts Recycled . | . . . . . . . . . . . . . Recycled Matter . | . . . . . . . . . . . . . Retrieved Matter . | . . . . . . . . . . . . . Retrieved Components . | . . . . . . . . . . . . . Parts Scanalyzed 3 | . . . . . 1 . . . 2 . . . Part Schematics Acquired 3 | . . . . . 1 . . . 2 . . . Parts Damaged . | . . . . . . . . . . . . . Bothacking | -11 -10 -10 -10 -9 -8 -8 -8 -8 -7 -7 -7 -7 ------------ Run | Jun Mat Min Exi Min Mat Gar Mat Gar Fac Was Fac Gar Used RIF Installer 3 | . . . . . . 2 . 1 . . . . Zone Cloak 1 | . . . . . . . . 1 . . . . Patrol Navigation 1 | . . . . . . 1 . . . . . . Robots Hacked . | . . . . . . . . . . . . . Non-combat . | . . . . . . . . . . . . . Combat . | . . . . . . . . . . . . . Robot Hacks Applied . | . . . . . . . . . . . . . Relay Couplers Released . | . . . . . . . . . . . . . Fabnet Peak Effective % . | . . . . . . . . . . . . . Robots Rewired 1 | . . . . . . . . 1 . . . . Allies Hacked 1 | . . . . . . 1 . . . . . . Hacks Repelled . | . . . . . . . . . . . . . Allies | -11 -10 -10 -10 -9 -8 -8 -8 -8 -7 -7 -7 -7 -------- Run | Jun Mat Min Exi Min Mat Gar Mat Gar Fac Was Fac Gar Total Allies 17 | . . 3 . . 2 . . 1 9 2 . . Largest Group 4 | . . 3 1 1 2 2 . 1 4 2 . . Highest-Rated Group 74 | . . 40 16 16 26 26 . 14 74 32 . . Highest-Rated Ally 26 | . . 16 16 16 16 16 . 14 26 16 . . Total Orders 11 | . . . . . 2 3 . . 6 . . . STAY 7 | . . . . . 1 2 . . 4 . . . FOLLOW 4 | . . . . . 1 1 . . 2 . . . Ally Attacks 75 | . . 16 . 2 . 3 . . 20 34 . . Total Damage 951 | . . 199 . 29 . 37 . . 225 461 . . Kills 3 | . . 3 . . . . . . . . . . Allies Corrupted 1 | . . . . . . 1 . . . . . . Allies Melted . | . . . . . . . . . . . . . Intel | -11 -10 -10 -10 -9 -8 -8 -8 -8 -7 -7 -7 -7 ------- Run | Jun Mat Min Exi Min Mat Gar Mat Gar Fac Was Fac Gar Robot Analysis Total . | . . . . . . . . . . . . . Derelict Logs Recovered 2 | . . 1 . 1 . . . . . . . . Drone Launches . | . . . . . . . . . . . . . Drone Recoveries . | . . . . . . . . . . . . . Exploration | -11 -10 -10 -10 -9 -8 -8 -8 -8 -7 -7 -7 -7 ------------- Run | Jun Mat Min Exi Min Mat Gar Mat Gar Fac Was Fac Gar Turns Passed 9464 | 88 469 790 590 651 1267 1324 148 951 2865 166 64 91 Spaces Moved 5398 | 48 206 462 330 301 518 533 106 515 2029 109 84 157 Core 4 | 2 . . . . . . . . . 2 . . Treads 937 | 46 206 462 195 3 . 21 . 4 . . . . Legs 174 | . . . . . . . . . 174 . . . Wheels 3987 | . . . 135 298 518 512 106 511 1855 25 27 . Hover . | . . . . . . . . . . . . . Flight 296 | . . . . . . . . . . 82 57 157 Fastest Speed 37 | 50 160 160 100 190 190 95 110 110 95 40 37 37 Average Speed 141 | 155 160 160 171 193 202 196 110 133 112 55 58 37 Slowest Speed 560 | 160 160 160 190 560 205 295 110 400 190 105 100 117 Overloaded Moves . | . . . . . . . . . . . . . Propulsion Burnouts . | . . . . . . . . . . . . . Robots Hopped 1 | . . . . . . . . . . . . 1 Cave-ins Triggered 2 | . . . . . . . . . . 2 . . Exploration Rate (%) 46 | 4 35 79 70 68 49 67 13 57 48 75 3 31 Regions Visited 12 Branch Regions 3 Pre-discovered Areas 1 | . . 1 . . . . . . . . . . Known Exits Taken 3 | . . . . . 1 . 1 . . . 1 . Unknown Exits Taken 5 | 1 1 1 1 1 . . . . . . . . Scrap Searched 4 | . . 3 . 1 . . . . . . . . Spaces Dug 25 | . . . . . 3 . . . 7 5 . 10 Terrain Destroyed 126 | . . . . . 5 . . 24 65 7 . 25 Melee 1 | . . . . . 1 . . . . . . . Projectile 37 | . . . . . 4 . . . 26 7 . . AOE 88 | . . . . . . . . 24 39 . . 25 Terrain Rammed . | . . . . . . . . . . . . . Walls Destroyed . | . . . . . . . . . . . . . Machines Disabled . | . . . . . . . . . . . . . Actions | -11 -10 -10 -10 -9 -8 -8 -8 -8 -7 -7 -7 -7 --------- Run | Jun Mat Min Exi Min Mat Gar Mat Gar Fac Was Fac Gar Total 6520 | 58 287 488 355 345 641 689 132 675 2404 166 97 183 Wait 440 | . 30 6 1 31 42 42 19 38 196 23 10 2 Move 5386 | 47 205 461 329 300 517 532 106 514 2029 108 83 155 Hop 1 | . . . . . . . . . . . . 1 Pick Up 100 | 4 5 3 16 . 19 27 2 4 19 1 . . Fast Attach 40 | 6 3 . 1 . 2 3 . 5 13 4 3 . Attach 27 | . . 1 . . 3 5 . 4 11 2 . 1 Detach 1 | . 1 . . . . . . . . . . . Swap 54 | . 3 3 2 4 10 12 . 7 13 . . . Drop 42 | . 3 . 6 . 6 5 2 1 17 . 1 1 Fire 346 | . 25 12 . 9 40 63 3 55 106 28 . 5 Melee 1 | . . . . . 1 . . . . . . . Ram 1 | . . . . . . . . 1 . . . . Kick . | . . . . . . . . . . . . . Crush 17 | 1 12 2 . 1 1 . . . . . . . Escape Stasis 63 | . . . . . . . . 45 . . . 18 Rewire 1 | . . . . . . . . 1 . . . . Trap . | . . . . . . . . . . . . . Miscellaneous . | . . . . . . . . . . . . . Route ------- -11/Junkyard -10/Materials -10/Mines (discovered 3 exits: [*Mat x2] / *Exi) -10/Exiles -9/Mines -8/Materials (discovered 2 exits: *Fac / Gar) -8/Garrison (discovered 2 exits: *Mat x2) -8/Materials -8/Garrison (discovered 2 exits: *Fac x2) -7/Factory (discovered 3 exits: [*Sto x2] / [*Low]) -7/Waste -7/Factory -7/Garrison History --------- Turn | Location | Event 7 | -11/Junkyard | Discovered new exit (range 15) 89 | -11/Junkyard | Entered Materials 310 | -10/Materials | Build established: Mutant 442 | -10/Materials | Central database locked down 532 | -10/Materials | Discovered new exit (range 10) 558 | -10/Materials | Entered Mines 570 | -10/Mines | Learned location of Storage (-7) 742 | -10/Mines | Assisted by bots powering up and referring to "LRC-V3" 854 | -10/Mines | Assembled infested the area 1193 | -10/Mines | Discovered new exit (range 12) 1226 | -10/Mines | Discovered new exit (range 8) 1258 | -10/Mines | Discovered new exit (range 5) 1348 | -10/Mines | Entered Exiles 1348 | -10/Exiles | Accompanied by 1 ally 1387 | -10/Exiles | Met 8R-AWN 1396 | -10/Exiles | Build established: Scavenger-Mutant 1414 | -10/Exiles | Met EX-HEX 1459 | -10/Exiles | Met EX-BIN 1481 | -10/Exiles | Aligned with FarCom system 1483 | -10/Exiles | Given EX-Vault access code 1524 | -10/Exiles | Opened EX-Vault 1541 | -10/Exiles | Found Army-in-a-Box 1575 | -10/Exiles | Warned to stay clear of 0b10 Research branches 1620 | -10/Exiles | Met EX-DEC 1912 | -10/Exiles | Discovered new exit (range 14) 1938 | -10/Exiles | Left Exiles lab with Army-in-a-Box 1938 | -10/Exiles | Entered Mines 1938 | -9/Mines | Accompanied by 1 ally 1967 | -9/Mines | Build established: Hauler-Mutant 2038 | -9/Mines | Learned location of 1 exit from Proximity Caves 2513 | -9/Mines | Found a hidden stash of uninstalled traps 2570 | -9/Mines | Discovered new exit (range 10) 2589 | -9/Mines | Entered Materials 2589 | -8/Materials | Evolved 4 slots: Utility x4 3191 | -8/Materials | Discovered new exit (range 14) 3753 | -8/Materials | Identified exit to Garrison 3835 | -8/Materials | Garrison activated, responded to threat 3856 | -8/Materials | Entered Garrison 3856 | -8/Garrison | Accompanied by 2 allies 3906 | -8/Garrison | Installed Relay Interface Framework 3972 | -8/Garrison | Triggered checkpoint 4056 | -8/Garrison | Learned Materials security intel 4087 | -8/Garrison | P-60 Hacker assimilated allied Technician 3a 4238 | -8/Garrison | Triggered checkpoint 4473 | -8/Garrison | Discovered new exit (range 10) 4515 | -8/Garrison | Expanded RIF knowledge: Patrol Navigation 4750 | -8/Garrison | Triggered checkpoint 4933 | -8/Garrison | Discovered new exit (range 10) 5032 | -8/Garrison | Lost 7 parts (1p6u) 5180 | -8/Garrison | Entered Materials 5284 | -8/Materials | Build established: Scavenger-Mutant 5328 | -8/Materials | Identified exit to Garrison 5328 | -8/Materials | Entered Garrison 5628 | -8/Garrison | Lost 3 parts (1p1n1u) 5665 | -8/Garrison | Core integrity fell below 50% 5750 | -8/Garrison | Discovered new exit (range 10) 5882 | -8/Garrison | Triggered checkpoint 5975 | -8/Garrison | Expanded RIF knowledge: Zone Cloak 6233 | -8/Garrison | Discovered new exit (range 10) 6279 | -8/Garrison | Entered Factory 6279 | -7/Factory | Accompanied by 1 ally 6279 | -7/Factory | Evolved 2 slots: Propulsion x1, Utility x1 6334 | -7/Factory | Fabricated O-16 Technician? 6595 | -7/Factory | Discovered new exit (range 11) 6772 | -7/Factory | Lost 3 parts (1p2u) 6784 | -7/Factory | Discovered new exit (range 16) 7022 | -7/Factory | Build established: Mutant 7159 | -7/Factory | Fabricated O-16 Technician? 7318 | -7/Factory | P-60 Hacker assimilated allied Technician 4b 7564 | -7/Factory | Discovered new exit (range 16) 8151 | -7/Factory | Lost 5 parts (1n4u) 8349 | -7/Factory | Fabricated Hvy. Plasma Cannon (x2) 8664 | -7/Factory | Fabricated G-47 Trooper (x3) 8805 | -7/Factory | Build established: Hacker-Mutant 9117 | -7/Factory | Fabricated G-47 Trooper (x3) 9144 | -7/Factory | Sucked down chute 9144 | -7/Factory | Entered Waste 9144 | -7/Waste | Met up with 2 allies sucked down the chute earlier 9151 | -7/Waste | Spotted C-40 Crusher 9154 | -7/Waste | Spotted C-40 Crusher 9159 | -7/Waste | EMP discharged 9161 | -7/Waste | Destroyed C-40 Crusher 9164 | -7/Waste | Spotted C-40 Crusher 9178 | -7/Waste | Spotted C-40 Crusher 9195 | -7/Waste | Spotted C-40 Crusher 9200 | -7/Waste | 3 allies followed down the chute 9203 | -7/Waste | Destroyed C-40 Crusher 9218 | -7/Waste | Destroyed C-40 Crusher 9245 | -7/Waste | Crushed by falling debris 9245 | -7/Waste | Core integrity fell below 50% 9245 | -7/Waste | System corruption reached 10% 9245 | -7/Waste | Crushed by Compactor (0 parts destroyed, 1 dropped) 9248 | -7/Waste | Crushed by Compactor (0 parts destroyed, 1 dropped) 9259 | -7/Waste | EMP discharged 9259 | -7/Waste | System corruption reached 30% 9271 | -7/Waste | Crushed by falling debris 9271 | -7/Waste | Crushed by Compactor (1 part destroyed, 2 dropped) 9274 | -7/Waste | Crushed by Compactor (1 part destroyed, 1 dropped) 9294 | -7/Waste | Spotted C-40 Crusher 9305 | -7/Waste | Lost 9 parts (1n6u2w) 9306 | -7/Waste | Discovered new exit (range 11) 9310 | -7/Waste | Entered Factory 9362 | -7/Factory | Identified exit to Garrison 9374 | -7/Factory | Entered Garrison 9424 | -7/Garrison | Core integrity fell below 20% 9450 | -7/Garrison | Triggered checkpoint 9450 | -7/Garrison | Triggered checkpoint 9465 | -7/Garrison | Destroyed by S-27 Virus with Autogun Last Messages --------------- 09423_ X-57 Shotgunner springs to life. 09430_ System corrupted: Matter fused (-9). 09445_ System corrupted: Substantial component data lost. 09450_ S-27 Virus destroyed. 09450_ Beams of light sweep through the air. An alarm sounds. 09453_ C-30 ARC bursts open, deploying its payload. 09453_ S-27 Virus unfolds itself. 09454_ S-27 Virus destroyed. 09455_ The unstable cave ceiling collapses. 09456_ S-27 Virus destroyed. 09458_ Hvy. Rocket Launcher destroyed. 09460_ 4NN S22XLGPRMV=,I4>CG 09464_ The unstable cave ceiling collapses. 09464_ Autogun crushed. 09464_ S-27 Virus destroyed. 09464_ Xenon Bombardment Thruster destroyed. 09464_ Dropped Enh. Nuclear Core. Garrison Door activated. 09465_ C-30 ARC bursts open, deploying its payload. 09465_ S-27 Virus unfolds itself. Map ----- +----------------------------------------------------+ | ?????????????????????????????????????????????????? | | ?????????????????????????????????????????????????? | | ?????????????????????????????????????????????????? | | ?????????????????????????????????????????????????? | | ?????????????????????????????????????????????????? | | ?????????????????????????????????????????????????? | | ?????????????????????????????????????????????????? | | ?????????????????????????????????????????????????? | | ?????????????????????????????????????????????????? | | ?????????????????????????????????????????????????? | | ?????????????????????????????????????????????????? | | ?????????????????????????????????????????????????? | | ?????????????????????????????????????????????????? | | ??????????????????????????###????????????????????? | | ?????????????????????????# ????????????????????? | | ?????????????????????????# ????????????????????? | | ?????????????????????????# #????????????????????? | | ?????????????????????????# #????????????????????? | | ?????????????????????????# #????????????????????? | | ?????????????????????????# #????????????????????? | | ?????????????????????????# #????????????????????? | | ???????????????????####??# #????????????????????? | | ???????????????#???#C%CC?# #????????????????????? | | ??????????????## ##sss ## ##???????????????????? | | ??????????????# #???????????????????? | | ?????????? @ #???????????????????? | | ?????????? #???????????????????? | | ?????????????## ## ## #???????????????????? | | ??????????????# ## ## ###?????????????????? | | ?????????????g" #?????????????????? | | ?????????????g" #?????????????????? | | ??????????????" gg #?????????????????? | | ?????????????g" b #?????????????????? | | ??????????????# ## ####????????????????? | | ??????????????# # #######??????????? | | ????????????? =% Y #??????????? | | ????????????? * xx #??????????? | | ??????????????# %%= ## #??????????? | | ??????????????### # #= # ## #??????????? | | ???????????????# ### ## ## ## #??????????? | | ???????????????????#####?# ##### ## #??????????? | | ?????????????????????????# #???# ## #??????????? | | ?????????????????????????# #??? ## #???######"" | | ?????????????????????????# #???# # #???# | | ?????????????????????????# #????### #???# ###### | | ?????????????????????????# ######## ###?# #????? | | ?????????????????????????# #T### #????? | | ?????????????????????????# #????? | | ?????????????????????????# ######### #######????? | | ?????????????????????????# #???????# #??????????? | +----------------------------------------------------+ Best States ------------- Heat Dissipation 103 Energy Generation 18 Energy Capacity 300 Matter Stores 300 Matter Capacity 300 Sight Range 16 Terrain Scan Density 10 Armor Coverage 225 Resistance: KI 20 Evasion (%) 62 Targeting Accuracy 24 Recoil Reduction 2 Particle Charging 15 Offensive Hacking 20 Defensive Hacking 10 Authchip Count 12 Item Schematics ----------------- Cmb. Airjet | -8/Materials | Scanalyzed Cld. Gravmag System | -7/Factory | Hacked Remote Datajack | -7/Factory | Scanalyzed Hvy. Rocket Launcher | -7/Factory | Scanalyzed Robot Schematics ------------------ M-13 Machinist | -10/Materials | Hacked O-16 Technician | -9/Mines | Hacked G-47 Trooper | -7/Factory | Hacked Fabricated ------------ O-16 Technician | x1 | -7/Factory | Authchip O-16 Technician | x1 | -7/Factory | Authchip Hvy. Plasma Cannon | x2 | -7/Factory | Preloaded G-47 Trooper | x3 | -7/Factory | Authchip G-47 Trooper | x3 | -7/Factory | Authchip Alien Tech Used ----------------- None Achievements -------------- None Challenges ------------ None Game ------ Seed BladeAuthchipFragment Manual? 0 Play Time 01:24:16 Cumulative 360.0 hours Start 2023.09.23 @ 12:00:56 End 2023.09.24 @ 13:34:06 Sessions 3 Manual Loads 0 Difficulty Rogue Special Mode None Game No. 226 Rogue 223 Adventurer 3 Explorer 0 Win Type - Total 7 Types 6/0/1/0/0/0/0/0/0 Lore% 69 Gallery% 75 Achievement% 66 Wizard Run 0 Options --------- ASCII 0 Keyboard 0 Movement Numpad Keybinds 0 Fullscreen 1 Font 18/SmallcapsGlow Map View 76x50 Tactical HUD 1 Map Filters NONE Filters NONE Steam 1 RUN: a6d3b74b-5b72-4b58-96ba-79834f3b7741